[Event "Portugal Open 2020"]
[Site "Lisbon"]
[Date "2020.02.01"]
[Round "9.12"]
[White "Rocha, Sergio"]
[Black "Stella, Andrea"]
[Result "0-1"]
[ECO "A48"]
[WhiteElo "2343"]
[BlackElo "2465"]
[Annotator "ChessBase"]
[PlyCount "88"]
[EventDate "2020.01.25"]
[EventType "swiss"]
[EventCountry "POR"]
[SourceTitle "playchess.com"]
[Source "ChessBase"]
[SourceQuality "1"]
[TimeControl "5400+30"]

1. d4 {[%emt 0:00:00]} Nf6 {[%emt 0:09:35]} 2. Nf3 {[%emt 0:01:14]} g6 {[%emt 0:00:14]} 3. Bg5 {[%emt 0:00:15]} Bg7 {[%emt 0:00:15]} 4. Nbd2 {[%emt 0:00:33]} O-O {[%emt 0:00:20]} 5. e4 {[%emt 0:00:44]} d5 {[%emt 0:00:07]} 6. e5 {[%emt 0:00:48]} Ne4 {[%emt 0:00:36]} 7. h4 {[%emt 0:02:40]} c5 {[%emt 0:02:55]} 8. c3 {[%emt 0:00:53]} Nc6 {[%emt 0:01:56]} 9. Bd3 {[%emt 0:01:02]} Bf5 {[%emt 0:24:59]} 10. Qe2 {[%emt 0:04:54]} cxd4 {[%emt 0:08:57]} 11. Nxe4 {[%emt 0:06:58]} dxe4 {[%emt 0:00:37]} 12. Bxe4 {[%emt 0:00:17]} Bxe4 {[%emt 0:06:22]} 13. Qxe4 {[%emt 0:00:06]} dxc3 {[%emt 0:00:03]} 14. bxc3 {[%emt 0:00:21]} Qa5 {[%emt 0:01:06]} 15. O-O {[%emt 0:03:15]} Nxe5 {[%emt 0:07:03]} 16. Nxe5 {[%emt 0:08:00]} Qxe5 {[%emt 0:03:26]} 17. Qxb7 {[%emt 0:00:18]} Qxc3 {[%emt 0:02:00]} 18. Bxe7 {[%emt 0:08:48]} Rfe8 {[%emt 0:03:47]} 19. Rae1 {[%emt 0:05:00]} a5 {[%emt 0:05:41]} 20. Qd5 {[%emt 0:07:54]} Qd4 {[%emt 0:04:48]} 21. Qxd4 {[%emt 0:01:18]} Bxd4 {[%emt 0:00:04]} 22. Re4 {[%emt 0:01:18]} Bc3 {[%emt 0:00:52]} 23. Rc4 {[%emt 0:00:44]} Be5 {[%emt 0:04:14]} 24. Bg5 {[%emt 0:00:26]} a4 {[%emt 0:01:30]} 25. g3 {[%emt 0:00:46]} Bg7 {[%emt 0:03:34]} 26. Rd1 {[%emt 0:01:40]} h6 {[%emt 0:01:01]} 27. Be3 {[%emt 0:00:18]} Rec8 {[%emt 0:02:44]} 28. Rxc8+ {[%emt 0:00:24]} Rxc8 {[%emt 0:00:03]} 29. Kf1 {[%emt 0:00:12]} Bf8 30. Ke2 {[%emt 0:01:58]} f5 {[%emt 0:03:08]} 31. Kd3 {[%emt 0:01:47]} Rd8+ {[%emt 0:01:30]} 32. Bd4 {[%emt 0:01:37]} Bg7 {[%emt 0:01:46]} 33. Kc4 {[%emt 0:00:09]} Kf7 {[%emt 0:00:09]} 34. Rd2 {[%emt 0:00:54]} Rc8+ {[%emt 0:01:00]} 35. Bc5 {[%emt 0:04:39]} Bf8 {[%emt 0:00:01]} 36. Rd5 {[%emt 0:00:08]} Kf6 {[%emt 0:01:02]} 37. h5 {[%emt 0:05:38]} Rxc5+ {[%emt 0:00:22]} 38. Kb4 {[%emt 0:00:06]} gxh5 {[%emt 0:00:03]} 39. Rxc5 {[%emt 0:00:47]} Bxc5+ {[%emt 0:00:03]} 40. Kxc5 {[%emt 0:00:03]} Kg5 {[%emt 0:00:18]} 41. Kb4 {[%emt 0:00:46]} h4 {[%emt 0:00:16]} 42. gxh4+ {[%emt 0:00:05]} Kxh4 {[%emt 0:00:03]} 43. Ka3 {[%emt 0:00:05]} h5 {[%emt 0:00:20]} 44. Kb4 {[%emt 0:00:16]} Kg5 {[%emt 0:01:09]} 0-1

[Event "Portugal Open 2020"]
[Site "Lisbon"]
[Date "2020.02.01"]
[Round "9.14"]
[White "Fidalgo, Andre Neves"]
[Black "Damaso, Rui"]
[Result "0-1"]
[ECO "A40"]
[WhiteElo "2282"]
[BlackElo "2420"]
[Annotator "NA"]
[PlyCount "64"]
[EventDate "2020.01.25"]
[EventType "swiss"]
[EventCountry "POR"]
[SourceTitle "playchess.com"]
[Source "ChessBase"]
[SourceQuality "1"]
[TimeControl "5400+30"]

1. d4 {[%emt 0:00:00]} e6 {[%emt 0:24:26]} 2. c4 {[%emt 0:00:29]} b6 {[%emt 0:00:55]} 3. Nc3 {[%emt 0:02:24]} Bb4 {[%emt 0:01:29]} 4. e4 {[%emt 0:01:41]} Bb7 {[%emt 0:00:12]} 5. f3 {[%emt 0:00:59]} f5 {[%emt 0:00:42]} 6. e5 {[%emt 0:06:21]} (6. exf5 $14 exf5 7. a3 Qe7+ 8. Be2 Qh4+ 9. g3 Bxc3+ 10. bxc3) 6... d6 {[%emt 0:12:16]} 7. Bf4 {[%emt 0:27:16]} dxe5 {[%emt 0:04:11]} 8. Bxe5 {[%emt 0:01:44]} Qe7 {[%emt 0:00:56]} 9. a3 {[%emt 0:05:08]} Bxc3+ $1 {[%emt 0:00:54]} 10. bxc3 $15 {[%emt 0:00:06]} Nc6 {[%emt 0:00:09]} 11. Bg3 {[%emt 0:02:27]} e5 {[%emt 0:05:27]} 12. d5 {[%emt 0:01:41]} Na5 {[%emt 0:00:08]} 13. Qa4+ {[%emt 0:01:01]} c6 {[%emt 0:02:04]} 14. Bd3 {[%emt 0:03:04]} f4 {[%emt 0:03:30]} 15. Bf2 {[%emt 0:00:18]} Nf6 {[%emt 0:03:19]} 16. Be4 {[%emt 0:04:38]} O-O {[%emt 0:05:40]} 17. dxc6 {[%emt 0:14:32]} Ba6 {[%emt 0:04:53]} 18. Bd5+ {[%emt 0:06:21]} Nxd5 {[%emt 0:00:51]} 19. cxd5 {[%emt 0:00:05]} Bc4 {[%emt 0:00:07]} 20. Rd1 {[%emt 0:01:47]} Rad8 {[%emt 0:07:31]} 21. Qb4 {[%emt 0:00:52]} Qf7 {[%emt 0:00:39]} 22. c7 {[%emt 0:03:13]} Qxc7 {[%emt 0:00:54]} 23. d6 {[%emt 0:00:12]} Qf7 {[%emt 0:01:33]} 24. Bh4 {[%emt 0:00:06]} Rd7 {[%emt 0:00:23]} 25. Be7 {[%emt 0:03:47]} Nc6 {[%emt 0:01:25]} 26. Qa4 {[%emt 0:01:06]} b5 {[%emt 0:00:14]} 27. Qa6 {[%emt 0:02:37]} Nxe7 {[%emt 0:00:28]} 28. dxe7 {[%emt 0:00:09]} Rxd1+ {[%emt 0:00:28]} 29. Kxd1 {[%emt 0:00:06]} Qxe7 {[%emt 0:00:03]} 30. Nh3 {[%emt 0:00:39]} Qd7+ {[%emt 0:01:01]} 31. Kc1 {[%emt 0:00:06]} Qd3 {[%emt 0:01:35]} 32. Qa5 {[%emt 0:00:16]} Bb3 {[%emt 0:00:08]} 0-1

[Event "Portugal Open 2020"]
[Site "Lisbon"]
[Date "2020.02.01"]
[Round "9.15"]
[White "Balbuena Fuentes, Mario"]
[Black "Savanovic, Aleksandar"]
[Result "0-1"]
[ECO "C80"]
[WhiteElo "2234"]
[BlackElo "2414"]
[Annotator "NA"]
[PlyCount "72"]
[EventDate "2020.01.25"]
[EventType "swiss"]
[EventCountry "POR"]
[SourceTitle "playchess.com"]
[Source "ChessBase"]
[SourceQuality "1"]
[TimeControl "5400+30"]

1. e4 {[%emt 0:08:50]} e5 {[%emt 0:00:00]} 2. Nf3 {[%emt 0:00:43]} Nc6 {[%emt 0:00:00]} 3. Bb5 {[%emt 0:00:10]} a6 {[%emt 0:00:00]} 4. Ba4 {[%emt 0:00:05]} Nf6 {[%emt 0:00:05]} 5. O-O {[%emt 0:00:21]} Nxe4 {[%emt 0:00:32]} 6. d4 {[%emt 0:00:27]} b5 {[%emt 0:00:09]} 7. Bb3 {[%emt 0:00:04]} d5 {[%emt 0:00:06]} 8. dxe5 {[%emt 0:00:10]} Be6 {[%emt 0:00:05]} 9. Nbd2 {[%emt 0:00:53]} Nc5 {[%emt 0:00:09]} 10. c3 {[%emt 0:00:32]} Bg4 {[%emt 0:00:29]} 11. Bc2 {[%emt 0:04:32]} Be7 {[%emt 0:00:07]} 12. Re1 {[%emt 0:01:06]} O-O {[%emt 0:00:13]} 13. Nb3 {[%emt 0:00:30]} Ne6 {[%emt 0:02:14] C82: Open Ruy Lopez: 9 c3 without 9...Be7} 14. Qd3 {[%emt 0:00:17]} g6 {[%emt 0:00:06]} 15. Bh6 {[%emt 0:00:10] Re} Re8 {[%emt 0:00:06]} 16. Qe3 {[%emt 0:00:27]} a5 {[%emt 0:02:34]} 17. a4 {[%emt 0:05:00]} ({Better is} 17. Bd3 $14 Qb8 18. Nfd4 Ncxd4 19. Nxd4) 17... Bxf3 {[%emt 0:28:55]} 18. Qxf3 {[%emt 0:04:26]} bxa4 {[%emt 0:02:44] [#]} 19. Rxa4 $146 {[%emt 0:03:07]} ({Predecessor:} 19. Nc1 Nc5 20. Nd3 Nxd3 21. Qxd3 Bg5 22. Bxa4 Nxe5 23. Qg3 Nf3+ 24. gxf3 Rxe1+ 25. Rxe1 Bxh6 {1-0 (47) Delchev,A (2601)-Narciso Dublan,M (2487) Navalmoral 2004}) 19... Qd7 {[%emt 0:02:44]} 20. Rg4 {[%emt 0:14:36]} (20. Raa1 $11) 20... a4 $15 {[%emt 0:02:29]} 21. Nd4 {[%emt 0:01:26]} Ncxd4 {[%emt 0:00:46]} 22. cxd4 {[%emt 0:00:11]} Reb8 {[%emt 0:02:28]} 23. Bc1 {[%emt 0:18:48]} Qc6 {[%emt 0:11:23]} 24. Qd3 {[%emt 0:05:27]} Rb4 {[%emt 0:03:00]} 25. Bd2 {[%emt 0:12:14]} Rxb2 {[%emt 0:02:09]} 26. Bc3 {[%emt 0:00:11]} Bb4 {[%emt 0:04:11]} 27. Bxb2 {[%emt 0:00:33]} Bxe1 {[%emt 0:00:04]} 28. h4 {[%emt 0:01:11]} a3 {[%emt 0:03:44]} 29. Ba1 {[%emt 0:03:03]} Ng7 {[%emt 0:02:16]} 30. Rf4 {[%emt 0:02:30]} Bb4 {[%emt 0:02:28]} 31. Rf6 {[%emt 0:01:23]} Qd7 {[%emt 0:02:34]} 32. Qf3 {[%emt 0:02:09]} Nh5 {[%emt 0:04:32]} 33. Bf5 {[%emt 0:03:08]} Qe8 {[%emt 0:00:06]} 34. Bd3 {[%emt 0:04:33]} Nxf6 {[%emt 0:00:20]} 35. Qxf6 {[%emt 0:00:03]} Qe6 {[%emt 0:00:54]} 36. Qf4 {[%emt 0:00:12]} h5 {[%emt 0:02:43]} 0-1

[Event "Portugal Open 2020"]
[Site "Lisbon"]
[Date "2020.02.01"]
[Round "9.16"]
[White "Sousa, Andre Ventura"]
[Black "Risting, Eivind Olav"]
[Result "1-0"]
[ECO "B30"]
[WhiteElo "2391"]
[BlackElo "2306"]
[Annotator "NA"]
[PlyCount "89"]
[EventDate "2020.01.25"]
[EventType "swiss"]
[EventCountry "POR"]
[SourceTitle "playchess.com"]
[Source "ChessBase"]
[SourceQuality "1"]
[TimeControl "5400+30"]

1. e4 {[%emt 0:00:00]} c5 {[%emt 0:00:08]} 2. Nf3 {[%emt 0:00:00]} Nc6 {[%emt 0:00:19]} 3. Bb5 {[%emt 0:00:00]} e6 {[%emt 0:00:18]} 4. O-O {[%emt 0:00:00]} Nge7 {[%emt 0:00:10]} 5. d4 {[%emt 0:00:00]} cxd4 {[%emt 0:00:24]} 6. Nxd4 {[%emt 0:00:00]} Qb6 {[%emt 0:00:09]} 7. Nxc6 {[%emt 0:00:00] B30: Sicilian: 2...Nc6 3 Bb5, lines without ...g6} bxc6 {[%emt 0:01:32]} 8. Be2 {[%emt 0:01:12]} Ng6 {[%emt 0:01:18]} 9. c4 {[%emt 0:00:05]} d6 {[%emt 0:06:34]} 10. Nc3 {[%emt 0:00:37]} Be7 {[%emt 0:03:21]} 11. Rb1 {[%emt 0:00:04]} c5 {[%emt 0:07:36]} 12. f4 {[%emt 0:04:41]} O-O {[%emt 0:01:05] [#]} 13. Bd3 $146 {[%emt 0:07:33]} ({Predecessor:} 13. Be3 a5 14. Qb3 Qxb3 15. axb3 Bb7 16. Bd3 Rfd8 17. Rfd1 Nf8 18. Ra1 Nd7 19. Be2 {½-½ (23) Olsen,S (2465)-Emelyanov,M (2518) ICCF email 2014}) 13... Bd7 {[%emt 0:06:23]} 14. Qh5 {[%emt 0:02:47]} f5 {[%emt 0:09:29]} 15. exf5 {[%emt 0:10:46]} exf5 {[%emt 0:00:06]} 16. Nd5 {[%emt 0:05:42]} Qd8 {[%emt 0:01:32]} 17. Bd2 {[%emt 0:00:35]} Bf6 {[%emt 0:03:57]} 18. Nxf6+ {[%emt 0:01:32]} Rxf6 {[%emt 0:02:32]} 19. Bc3 {[%emt 0:00:21]} Rf7 {[%emt 0:00:33]} 20. Rbd1 $16 {[%emt 0:06:42]} Qc7 {[%emt 0:03:01]} 21. Qg5 {[%emt 0:19:04]} Nf8 {[%emt 0:12:57]} 22. Rfe1 {[%emt 0:00:49]} Ne6 {[%emt 0:02:05]} 23. Qg3 {[%emt 0:00:36]} Re8 {[%emt 0:02:15]} 24. Be2 {[%emt 0:02:52]} Ree7 {[%emt 0:04:03]} 25. Bh5 {[%emt 0:00:53]} Rf8 {[%emt 0:00:41]} 26. Bf3 {[%emt 0:02:37]} Rfe8 {[%emt 0:02:14]} 27. Bd5 {[%emt 0:00:28]} Kh8 {[%emt 0:00:55]} 28. Rd3 {[%emt 0:02:40]} Bc8 {[%emt 0:06:11]} 29. Rde3 {[%emt 0:04:19]} Nd4 {[%emt 0:04:04]} 30. Qg6 {[%emt 0:00:34]} Nf3+ {[%emt 0:03:23]} 31. Rxf3 {[%emt 0:00:05]} Rxe1+ {[%emt 0:00:06]} 32. Bxe1 {[%emt 0:00:04]} Rxe1+ {[%emt 0:00:08]} 33. Kf2 {[%emt 0:00:04]} Qe7 {[%emt 0:01:53]} 34. Qg5 {[%emt 0:04:14]} Re2+ {[%emt 0:03:34]} 35. Kg3 {[%emt 0:00:26]} g6 {[%emt 0:02:04]} 36. Qxe7 {[%emt 0:00:34]} Rxe7 {[%emt 0:00:02]} 37. Rb3 {[%emt 0:00:53]} Kg7 {[%emt 0:00:22]} 38. Rb8 {[%emt 0:00:18]} Rc7 {[%emt 0:02:14]} 39. Kf3 {[%emt 0:00:12]} Kf6 {[%emt 0:00:16]} 40. Ke3 {[%emt 0:01:18]} h6 {[%emt 0:01:53]} 41. a3 {[%emt 0:00:44]} g5 {[%emt 0:00:14]} 42. g3 {[%emt 0:03:17]} g4 {[%emt 0:02:37]} 43. b4 {[%emt 0:01:51]} Ke7 {[%emt 0:02:30]} 44. b5 {[%emt 0:00:35]} Kd8 {[%emt 0:00:06]} 45. Be6 {[%emt 0:00:12]} 1-0

[Event "Portugal Open 2020"]
[Site "Lisbon"]
[Date "2020.02.01"]
[Round "9.20"]
[White "Pourquet, Matthieu"]
[Black "Martin Duque, Jesus"]
[Result "1-0"]
[ECO "A04"]
[WhiteElo "2198"]
[BlackElo "2447"]
[Annotator "NA"]
[PlyCount "101"]
[EventDate "2020.01.25"]
[EventType "swiss"]
[EventCountry "POR"]
[SourceTitle "playchess.com"]
[Source "ChessBase"]
[SourceQuality "1"]
[TimeControl "5400+30"]

1. Nf3 {[%emt 0:00:00]} c5 {[%emt 0:00:00]} 2. g3 {[%emt 0:01:38]} Nc6 {[%emt 0:00:00]} 3. Bg2 {[%emt 0:00:51]} e5 {[%emt 0:00:03]} 4. O-O {[%emt 0:00:06]} g6 {[%emt 0:00:40]} 5. d3 {[%emt 0:01:55]} Bg7 {[%emt 0:01:20]} 6. c4 {[%emt 0:02:40]} Nge7 {[%emt 0:00:44]} 7. Nc3 {[%emt 0:00:05]} O-O {[%emt 0:00:24]} 8. Ne1 {[%emt 0:00:05]} d6 {[%emt 0:01:45]} 9. Nc2 {[%emt 0:00:04]} Be6 {[%emt 0:01:25]} 10. Ne3 {[%emt 0:00:06]} Qd7 {[%emt 0:04:03]} 11. Rb1 {[%emt 0:01:25]} Bh3 {[%emt 0:09:21]} 12. Ned5 {[%emt 0:00:18]} Bxg2 {[%emt 0:02:12] A37: Symmetrical English vs ...g6: 4 Bg2 Bg7 5 Nf3} 13. Kxg2 {[%emt 0:00:05]} f5 {[%emt 0:01:02] [#]} 14. e3 $146 {[%emt 0:03:28]} ({Predecessor:} 14. b4 Nxd5 15. Nxd5 f4 16. f3 Rae8 17. bxc5 dxc5 18. Nc3 h5 19. Ne4 b6 20. Rg1 {½-½ (55) Laznicka,V (2667)-Cheparinov,I (2670) Batumi 2019}) 14... Nxd5 {[%emt 0:17:26]} 15. Nxd5 {[%emt 0:00:28]} e4 {[%emt 0:00:37]} 16. b3 {[%emt 0:09:53]} Rae8 {[%emt 0:05:40]} 17. Bb2 {[%emt 0:03:44]} Bxb2 {[%emt 0:00:19]} 18. Rxb2 {[%emt 0:00:04]} Ne5 {[%emt 0:00:11]} 19. dxe4 {[%emt 0:12:50]} fxe4 {[%emt 0:00:13]} 20. Nc3 $11 {[%emt 0:03:32]} Nf3 {[%emt 0:06:45]} 21. Qd5+ {[%emt 0:03:05]} Kh8 {[%emt 0:01:54]} 22. Rd1 {[%emt 0:10:11]} Qg7 {[%emt 0:29:55]} 23. Rc2 {[%emt 0:00:20]} Qf6 {[%emt 0:00:52]} 24. Nxe4 {[%emt 0:06:47]} Rxe4 {[%emt 0:05:16]} 25. Qxe4 {[%emt 0:00:44]} Ng5 {[%emt 0:00:01]} 26. Qd5 {[%emt 0:06:37]} Re8 {[%emt 0:00:01]} 27. h4 {[%emt 0:05:07]} Ne4 {[%emt 0:01:51]} 28. Qxb7 {[%emt 0:00:39]} Qf5 {[%emt 0:01:09]} 29. Rd5 {[%emt 0:03:00]} Qf6 {[%emt 0:00:38]} 30. Rd3 {[%emt 0:10:24]} Qf5 {[%emt 0:00:23]} 31. Qd5 {[%emt 0:01:17]} Re5 {[%emt 0:00:05]} 32. Qa8+ {[%emt 0:00:07]} Kg7 {[%emt 0:00:01]} 33. Rd5 {[%emt 0:01:45]} Nxg3 {[%emt 0:02:30]} 34. Rxe5 {[%emt 0:00:23]} dxe5 {[%emt 0:00:02]} 35. Kxg3 {[%emt 0:01:19]} Qxc2 {[%emt 0:00:24]} 36. Qxa7+ {[%emt 0:00:07]} Kf6 {[%emt 0:00:28]} 37. Qxc5 {[%emt 0:00:25]} Qxa2 {[%emt 0:00:53]} 38. b4 {[%emt 0:02:04]} Qb1 {[%emt 0:00:12]} 39. Qc6+ {[%emt 0:01:03]} Ke7 {[%emt 0:00:00]} 40. b5 {[%emt 0:00:47]} e4 {[%emt 0:01:31]} 41. Kf4 {[%emt 0:00:15]} Qg1 {[%emt 0:00:19]} 42. Qxe4+ {[%emt 0:00:06]} Kd7 {[%emt 0:00:01]} 43. Qd5+ {[%emt 0:00:33]} Kc7 {[%emt 0:00:08]} 44. Qc5+ {[%emt 0:00:08]} Kd7 {[%emt 0:00:07]} 45. Qc6+ {[%emt 0:01:14]} Ke7 {[%emt 0:00:02]} 46. Qc7+ {[%emt 0:00:07]} Ke8 {[%emt 0:00:10]} 47. Qe5+ {[%emt 0:01:16]} Kd7 {[%emt 0:00:00]} 48. Qg7+ {[%emt 0:00:15]} Ke6 {[%emt 0:00:15]} 49. Qg8+ {[%emt 0:01:41]} Kf6 {[%emt 0:00:26]} 50. Qd8+ {[%emt 0:00:06]} Ke6 {[%emt 0:00:06]} 51. Qd5+ {[%emt 0:00:04]} 1-0

[Event "Portugal Open 2020"]
[Site "Lisbon"]
[Date "2020.02.01"]
[Round "9.22"]
[White "Tscharotschkin, Michael"]
[Black "Vasli, Aref"]
[Result "0-1"]
[ECO "A46"]
[WhiteElo "2156"]
[BlackElo "2391"]
[Annotator "NA"]
[PlyCount "68"]
[EventDate "2020.01.25"]
[EventType "swiss"]
[EventCountry "POR"]
[SourceTitle "playchess.com"]
[Source "ChessBase"]
[SourceQuality "1"]
[TimeControl "5400+30"]

1. d4 {[%emt 0:05:08]} Nf6 {[%emt 0:00:00]} 2. Nf3 {[%emt 0:00:07]} e6 {[%emt 0:00:00]} 3. Bf4 {[%emt 0:00:06]} b6 {[%emt 0:00:01]} 4. e3 {[%emt 0:00:07]} Be7 {[%emt 0:00:09]} 5. Nbd2 {[%emt 0:00:06]} O-O {[%emt 0:00:28]} 6. Bd3 {[%emt 0:00:19] A47: 1 d4 Nf6 2 Nf3 b6: Torre, London and Colle Systems} c5 {[%emt 0:00:10]} 7. c3 {[%emt 0:00:37]} d6 {[%emt 0:03:54]} 8. Qe2 {[%emt 0:00:39]} Bb7 {[%emt 0:00:29]} 9. e4 {[%emt 0:01:07]} cxd4 {[%emt 0:03:02]} 10. cxd4 {[%emt 0:00:18]} Nc6 {[%emt 0:00:05]} 11. a3 {[%emt 0:00:46] [#]} Re8 $146 {[%emt 0:01:00]} ({Predecessor:} 11... e5 12. dxe5 dxe5 13. Bxe5 Nh5 14. Bc4 Bf6 15. Bxf6 Qxf6 16. O-O Qxb2 17. Qe3 Rae8 {½-½ (41) Haribalu,V (2208)-Gilevich,A (2409) London 2018}) 12. O-O {[%emt 0:00:22]} a6 {[%emt 0:00:57]} 13. Rac1 {[%emt 0:01:27]} Bf8 {[%emt 0:00:48]} 14. e5 {[%emt 0:01:45]} dxe5 {[%emt 0:10:13]} 15. dxe5 {[%emt 0:00:37]} Nd4 {[%emt 0:14:05]} 16. Nxd4 {[%emt 0:06:03]} Qxd4 {[%emt 0:00:09]} 17. Rc4 {[%emt 0:04:09]} Qd5 {[%emt 0:00:06] [#]} 18. Nf3 $1 {[%emt 0:01:11]} b5 {[%emt 0:08:37]} 19. Rd4 {[%emt 0:14:44]} Qc5 {[%emt 0:08:49]} 20. Rd1 {[%emt 0:02:58]} g6 $14 {[%emt 0:07:50]} 21. Bxg6 {[%emt 0:06:38]} hxg6 {[%emt 0:01:04]} 22. exf6 {[%emt 0:00:24]} Qh5 {[%emt 0:13:33]} 23. Qe5 {[%emt 0:07:45]} Bxf3 {[%emt 0:08:09]} 24. gxf3 {[%emt 0:00:08]} Qxf3 25. R1d3 {[%emt 0:11:08]} Qg4+ {[%emt 0:00:22]} 26. Rg3 {[%emt 0:00:42]} Qf5 {[%emt 0:00:02]} 27. Rd7 {[%emt 0:00:31]} Qb1+ {[%emt 0:01:53]} 28. Kg2 {[%emt 0:00:30]} Rac8 {[%emt 0:01:46]} 29. b4 {[%emt 0:03:13]} Red8 {[%emt 0:08:02]} 30. Rc3 {[%emt 0:12:09]} Qa2 {[%emt 0:03:50]} 31. h4 {[%emt 0:04:02]} Ra8 {[%emt 0:05:35]} 32. Rcd3 {[%emt 0:01:01]} Rxd7 {[%emt 0:00:14]} 33. Rxd7 {[%emt 0:00:06]} Qc2 {[%emt 0:00:25]} 34. h5 {[%emt 0:01:32]} Qc6+ {[%emt 0:00:13]} 0-1

[Event "Portugal Open 2020"]
[Site "Lisbon"]
[Date "2020.02.01"]
[Round "9.24"]
[White "Sismeiro, Miguel"]
[Black "Bayramov, Zaur"]
[Result "0-1"]
[ECO "B08"]
[WhiteElo "2026"]
[BlackElo "2333"]
[Annotator "NA"]
[PlyCount "56"]
[EventDate "2020.01.25"]
[EventType "swiss"]
[EventCountry "POR"]
[SourceTitle "playchess.com"]
[Source "ChessBase"]
[SourceQuality "1"]
[TimeControl "5400+30"]

1. e4 {[%emt 0:02:29]} g6 {[%emt 0:00:00]} 2. d4 {[%emt 0:00:08]} Bg7 {[%emt 0:00:00]} 3. Nc3 {[%emt 0:00:05]} d6 {[%emt 0:00:00]} 4. Nf3 {[%emt 0:00:05]} Nf6 {[%emt 0:00:20]} 5. h3 {[%emt 0:00:10]} O-O {[%emt 0:00:10]} 6. Be3 {[%emt 0:00:19]} c6 {[%emt 0:00:47]} 7. a4 {[%emt 0:01:20]} Nbd7 {[%emt 0:00:58]} 8. Bc4 {[%emt 0:06:01]} Nxe4 {[%emt 0:06:02]} 9. Bxf7+ {[%emt 0:13:10]} Rxf7 {[%emt 0:00:08]} 10. Nxe4 {[%emt 0:00:01]} Nf6 {[%emt 0:13:36]} 11. Nxf6+ {[%emt 0:19:32]} exf6 {[%emt 0:02:02]} 12. O-O {[%emt 0:00:15]} d5 {[%emt 0:00:21]} 13. c3 {[%emt 0:01:08]} Be6 {[%emt 0:01:46]} 14. Ne1 {[%emt 0:03:05]} Qd6 15. Nd3 Re8 16. Bf4 {[%emt 0:02:48]} Qd8 {[%emt 0:03:05]} 17. Re1 {[%emt 0:01:18]} Rfe7 {[%emt 0:02:35]} 18. Qd2 $11 {[%emt 0:02:35]} g5 {[%emt 0:01:08]} 19. Bg3 {[%emt 0:02:32]} Bf5 {[%emt 0:02:56]} 20. f3 {[%emt 0:03:42]} Bf8 {[%emt 0:01:21]} 21. Rxe7 {[%emt 0:04:48]} Rxe7 {[%emt 0:01:03]} 22. a5 {[%emt 0:03:29]} Qe8 {[%emt 0:05:45]} 23. Kf2 {[%emt 0:05:45]} Qg6 {[%emt 0:04:41]} 24. Nc5 {[%emt 0:07:08]} Bh6 25. Re1 {[%emt 0:12:32]} g4 {[%emt 0:07:09]} 26. Bf4 {[%emt 0:02:57]} Bxf4 {[%emt 0:00:17]} 27. Qxf4 {[%emt 0:00:03]} g3+ {[%emt 0:00:12]} 28. Kf1 {[%emt 0:01:51]} Bd3+ {[%emt 0:00:09]} 0-1

[Event "Portugal Open 2020"]
[Site "Lisbon"]
[Date "2020.02.01"]
[Round "9.25"]
[White "Martins, Diogo Faria Oliveira"]
[Black "Esquivias Quintero, Luis Manuel"]
[Result "0-1"]
[ECO "B56"]
[WhiteElo "1998"]
[BlackElo "2318"]
[Annotator "ChessBase"]
[PlyCount "68"]
[EventDate "2020.01.25"]
[EventType "swiss"]
[EventCountry "POR"]
[SourceTitle "playchess.com"]
[Source "ChessBase"]
[SourceQuality "1"]
[TimeControl "5400+30"]

1. e4 {[%emt 0:00:00]} c5 {[%emt 0:08:06]} 2. Nf3 {[%emt 0:00:11]} d6 {[%emt 0:00:02]} 3. d4 {[%emt 0:00:07]} cxd4 {[%emt 0:00:02]} 4. Nxd4 {[%emt 0:00:06]} Nf6 {[%emt 0:00:03]} 5. Nc3 {[%emt 0:00:06]} Nc6 {[%emt 0:00:04]} 6. Be3 {[%emt 0:00:59]} Ng4 {[%emt 0:00:11]} 7. Bb5 {[%emt 0:01:18]} Nxe3 {[%emt 0:13:09]} 8. fxe3 {[%emt 0:00:26]} Bd7 {[%emt 0:00:46]} 9. O-O {[%emt 0:00:17]} e6 {[%emt 0:00:30]} 10. Bxc6 {[%emt 0:01:38]} bxc6 {[%emt 0:00:57]} 11. Qf3 {[%emt 0:00:12]} Qf6 {[%emt 0:02:25]} 12. Qe2 {[%emt 0:00:50]} Qe7 {[%emt 0:14:28]} 13. Qa6 {[%emt 0:12:13]} Rc8 {[%emt 0:00:05]} 14. Qxa7 {[%emt 0:00:43]} g6 {[%emt 0:00:20]} 15. Na4 {[%emt 0:05:52]} Bh6 {[%emt 0:07:11]} 16. Rf3 c5 17. Nb6 {[%emt 0:06:40]} cxd4 {[%emt 0:02:28]} 18. Nxc8 {[%emt 0:01:16]} Bxc8 {[%emt 0:00:03]} 19. Qxe7+ {[%emt 0:00:11]} Kxe7 {[%emt 0:00:02]} 20. exd4 {[%emt 0:00:08]} Bb7 {[%emt 0:00:03]} 21. Re1 {[%emt 0:01:19]} f5 {[%emt 0:01:54]} 22. Rh3 {[%emt 0:00:21]} Bg7 {[%emt 0:00:05]} 23. e5 {[%emt 0:01:14]} dxe5 {[%emt 0:00:04]} 24. dxe5 {[%emt 0:00:07]} Be4 {[%emt 0:00:12]} 25. c4 {[%emt 0:02:31]} Bxe5 {[%emt 0:01:32]} 26. b4 {[%emt 0:00:16]} Rd8 {[%emt 0:04:25]} 27. Rxh7+ {[%emt 0:07:33]} Kf6 {[%emt 0:01:01]} 28. Rxe4 {[%emt 0:00:07]} fxe4 {[%emt 0:00:10]} 29. a4 {[%emt 0:04:22]} e3 {[%emt 0:02:07]} 30. Kf1 {[%emt 0:00:17]} Rd2 {[%emt 0:00:13]} 31. Rh3 {[%emt 0:01:31]} Rf2+ {[%emt 0:00:04]} 32. Kg1 {[%emt 0:00:43]} Bd4 {[%emt 0:00:22]} 33. Rf3+ {[%emt 0:00:08]} Rxf3 {[%emt 0:00:04]} 34. gxf3 {[%emt 0:00:04]} e2+ {[%emt 0:00:07]} 0-1